[Event "Early-Titled-Tuesday-Blitz-April-02-2024"]
[Site "Chess.com"]
[Date "2024.04.02"]
[Round "4"]
[White "MITerryble"]
[Black "Nemegejas"]
[Result "1-0"]
[WhiteElo "2994"]
[BlackElo "2818"]
[TimeControl "180+1"]
[EndTime "8:39:53 PDT"]
[Termination "MITerryble won on time"]

1. d4 {[%clk 0:03:00.9]} 1... Nf6 {[%clk 0:02:59.2]} 2. Bg5 {[%clk 0:03:01.1]}
2... d5 {[%clk 0:02:58.2]} 3. e3 {[%clk 0:03:01.1]} 3... c5 {[%clk 0:02:58]} 4.
c3 {[%clk 0:03:01.3]} 4... Nc6 {[%clk 0:02:48.9]} 5. Nd2 {[%clk 0:02:57.4]} 5...
e6 {[%clk 0:02:46.2]} 6. Ngf3 {[%clk 0:02:56.6]} 6... Bd6 {[%clk 0:02:46.9]} 7.
Bd3 {[%clk 0:02:55.1]} 7... h6 {[%clk 0:02:45.8]} 8. Bh4 {[%clk 0:02:55.1]} 8...
O-O {[%clk 0:02:43.9]} 9. O-O {[%clk 0:02:54.7]} 9... b6 {[%clk 0:02:44.5]} 10.
Qe2 {[%clk 0:02:52.9]} 10... Bb7 {[%clk 0:02:43.5]} 11. e4 {[%clk 0:02:52.4]}
11... Be7 {[%clk 0:02:43.5]} 12. e5 {[%clk 0:02:51.4]} 12... Nd7 {[%clk
0:02:40.5]} 13. Bxe7 {[%clk 0:02:46.5]} 13... Qxe7 {[%clk 0:02:41.4]} 14. a3
{[%clk 0:02:46.6]} 14... f5 {[%clk 0:02:35.1]} 15. exf6 {[%clk 0:02:03.5]} 15...
Qxf6 {[%clk 0:02:33.7]} 16. Bb5 {[%clk 0:02:03.8]} 16... a6 {[%clk 0:02:31.7]}
17. Bxc6 {[%clk 0:02:03.1]} 17... Bxc6 {[%clk 0:02:32.6]} 18. Rfe1 {[%clk
0:02:03.2]} 18... Rfe8 {[%clk 0:02:25.4]} 19. Ne5 {[%clk 0:01:55.9]} 19... Nxe5
{[%clk 0:02:25.3]} 20. Qxe5 {[%clk 0:01:56.8]} 20... Qxe5 {[%clk 0:02:21.7]} 21.
Rxe5 {[%clk 0:01:57.7]} 21... Bd7 {[%clk 0:02:19.7]} 22. Nf3 {[%clk 0:01:56.4]}
22... Rac8 {[%clk 0:02:15.5]} 23. Rae1 {[%clk 0:01:54]} 23... Rf8 {[%clk
0:02:14.5]} 24. R5e3 {[%clk 0:01:41.5]} 24... Rc7 {[%clk 0:02:04.5]} 25. h4
{[%clk 0:01:39.3]} 25... Kh7 {[%clk 0:01:55.7]} 26. Kh2 {[%clk 0:01:39.5]} 26...
a5 {[%clk 0:01:52.9]} 27. Kg3 {[%clk 0:01:39.1]} 27... Bc8 {[%clk 0:01:38.8]}
28. Rd1 {[%clk 0:01:33.9]} 28... Bd7 {[%clk 0:01:28.8]} 29. Ne5 {[%clk
0:01:32.7]} 29... Ba4 {[%clk 0:01:27.9]} 30. Rd2 {[%clk 0:01:33.1]} 30... Rb8
{[%clk 0:01:21.2]} 31. Rf3 {[%clk 0:01:21.3]} 31... Kg8 {[%clk 0:01:07.1]} 32.
Re3 {[%clk 0:01:11.9]} 32... Kh7 {[%clk 0:01:04.8]} 33. h5 {[%clk 0:01:10]}
33... Be8 {[%clk 0:01:03.8]} 34. Kh4 {[%clk 0:01:10.1]} 34... b5 {[%clk
0:01:03.2]} 35. dxc5 {[%clk 0:00:47.5]} 35... b4 {[%clk 0:01:00.9]} 36. axb4
{[%clk 0:00:44.6]} 36... axb4 {[%clk 0:01:01.3]} 37. Nd3 {[%clk 0:00:45.2]}
37... bxc3 {[%clk 0:01:01.6]} 38. bxc3 {[%clk 0:00:46.1]} 38... Bd7 {[%clk
0:00:56.4]} 39. Rc2 {[%clk 0:00:38.9]} 39... Rb3 {[%clk 0:00:54.2]} 40. f3
{[%clk 0:00:33.8]} 40... Bb5 {[%clk 0:00:52]} 41. Nf4 {[%clk 0:00:27.9]} 41...
Bd7 {[%clk 0:00:52.4]} 42. Nd3 {[%clk 0:00:20.9]} 42... Bc8 {[%clk 0:00:47.7]}
43. g4 {[%clk 0:00:18.9]} 43... Kg8 {[%clk 0:00:46.4]} 44. Kg3 {[%clk
0:00:18.4]} 44... Kf8 {[%clk 0:00:46.1]} 45. Kf2 {[%clk 0:00:14.7]} 45... Ke7
{[%clk 0:00:44.2]} 46. Rc1 {[%clk 0:00:08.7]} 46... Kf6 {[%clk 0:00:44]} 47. f4
{[%clk 0:00:07.8]} 47... Ba6 {[%clk 0:00:43.9]} 48. Ne5 {[%clk 0:00:05]} 48...
Bb5 {[%clk 0:00:44.4]} 49. c4 {[%clk 0:00:03.2]} 49... dxc4 {[%clk 0:00:41.7]}
50. c6 {[%clk 0:00:03.8]} 50... Ke7 {[%clk 0:00:28.2]} 51. Rec3 {[%clk
0:00:03.3]} 51... Ba6 {[%clk 0:00:09.7]} 52. Ke3 {[%clk 0:00:03.6]} 52... Kd6
{[%clk 0:00:08.1]} 53. Kd4 {[%clk 0:00:04.2]} 53... Rb4 {[%clk 0:00:03.6]} 54.
Rd1 {[%clk 0:00:04.6]} 54... Bb5 {[%clk 0:00:03.5]} 55. Ke4+ {[%clk 0:00:04.7]}
55... Ke7 {[%clk 0:00:03.9]} 56. g5 {[%clk 0:00:02]} 56... Bxc6+ {[%clk
0:00:02.4]} 57. Kd4 {[%clk 0:00:02.6]} 57... Bd5 {[%clk 0:00:01.4]} 58. Ra1
{[%clk 0:00:02.8]} 1-0

[Event "Early-Titled-Tuesday-Blitz-April-02-2024"]
[Site "Chess.com"]
[Date "2024.04.02"]
[Round "4"]
[White "alexrustemov"]
[Black "ketster"]
[Result "1-0"]
[WhiteElo "2893"]
[BlackElo "2606"]
[TimeControl "180+1"]
[EndTime "8:39:54 PDT"]
[Termination "alexrustemov won on time"]

1. d4 {[%clk 0:02:57.3]} 1... d5 {[%clk 0:02:57.7]} 2. c4 {[%clk 0:02:57.2]}
2... e6 {[%clk 0:02:57.4]} 3. Nc3 {[%clk 0:02:57.6]} 3... Nf6 {[%clk 0:02:55.3]}
4. Nf3 {[%clk 0:02:58]} 4... dxc4 {[%clk 0:02:55]} 5. e4 {[%clk 0:02:56.2]} 5...
b5 {[%clk 0:02:54.9]} 6. e5 {[%clk 0:02:56.3]} 6... Nd5 {[%clk 0:02:55.1]} 7.
Nxb5 {[%clk 0:02:56.3]} 7... Nb6 {[%clk 0:02:54.8]} 8. a3 {[%clk 0:02:50.4]}
8... Nc6 {[%clk 0:02:52.7]} 9. Be3 {[%clk 0:02:48]} 9... Na5 {[%clk 0:02:44]}
10. Qc2 {[%clk 0:02:40.8]} 10... Bb7 {[%clk 0:02:38.9]} 11. Be2 {[%clk 0:02:40]}
11... Qd7 {[%clk 0:02:38]} 12. Nc3 {[%clk 0:02:38.9]} 12... f5 {[%clk
0:02:26.2]} 13. exf6 {[%clk 0:02:34.2]} 13... gxf6 {[%clk 0:02:26.3]} 14. Ne4
{[%clk 0:02:33.3]} 14... Be7 {[%clk 0:02:21.3]} 15. Nc5 {[%clk 0:02:31.5]} 15...
Bxc5 {[%clk 0:02:02.2]} 16. dxc5 {[%clk 0:02:32.4]} 16... Nd5 {[%clk 0:01:53.2]}
17. Bd2 {[%clk 0:02:30.3]} 17... Nb3 {[%clk 0:01:50.7]} 18. Rd1 {[%clk
0:02:30.7]} 18... Nxc5 {[%clk 0:01:46.7]} 19. Qxc4 {[%clk 0:02:20.6]} 19... Na4
{[%clk 0:01:34.8]} 20. Qc2 {[%clk 0:02:10.5]} 20... Nab6 {[%clk 0:01:30.5]} 21.
O-O {[%clk 0:02:10.4]} 21... O-O {[%clk 0:01:26.1]} 22. b4 {[%clk 0:01:55.4]}
22... Kh8 {[%clk 0:01:19.5]} 23. g3 {[%clk 0:01:53.1]} 23... Qg7 {[%clk
0:01:06]} 24. Nh4 {[%clk 0:01:45.1]} 24... Rad8 {[%clk 0:01:02.4]} 25. Bf3
{[%clk 0:01:44.4]} 25... Nd7 {[%clk 0:00:51.7]} 26. Bg2 {[%clk 0:01:40.8]} 26...
Ne5 {[%clk 0:00:49.7]} 27. Rfe1 {[%clk 0:01:37.2]} 27... Rfe8 {[%clk 0:00:48]}
28. Bc1 {[%clk 0:01:34.4]} 28... Ba6 {[%clk 0:00:38.6]} 29. Bb2 {[%clk
0:01:32.1]} 29... Nc4 {[%clk 0:00:25.3]} 30. Bc1 {[%clk 0:01:06.2]} 30... Ne5
{[%clk 0:00:22.4]} 31. h3 {[%clk 0:01:02.5]} 31... Kg8 {[%clk 0:00:20.7]} 32.
Kh2 {[%clk 0:01:01.5]} 32... Bb7 {[%clk 0:00:15.5]} 33. Bb2 {[%clk 0:01:01.2]}
33... Ng6 {[%clk 0:00:15.2]} 34. Nxg6 {[%clk 0:00:56.6]} 34... Qxg6 {[%clk
0:00:13.4]} 35. Qxg6+ {[%clk 0:00:54]} 35... hxg6 {[%clk 0:00:14.3]} 36. Bxd5
{[%clk 0:00:54.1]} 36... Rxd5 {[%clk 0:00:10.9]} 37. Rxd5 {[%clk 0:00:49.9]}
37... Bxd5 {[%clk 0:00:11.8]} 38. Bxf6 {[%clk 0:00:50.2]} 38... Rf8 {[%clk
0:00:12]} 39. Bd4 {[%clk 0:00:49.5]} 39... Rf3 {[%clk 0:00:12.6]} 40. Be3 {[%clk
0:00:46.8]} 40... a6 {[%clk 0:00:12.4]} 41. g4 {[%clk 0:00:42.1]} 41... Rf7
{[%clk 0:00:10.6]} 42. Rc1 {[%clk 0:00:39.2]} 42... Rd7 {[%clk 0:00:05.2]} 43.
Bf4 {[%clk 0:00:37.3]} 43... c6 {[%clk 0:00:04.7]} 44. Kg3 {[%clk 0:00:37.4]}
44... Be4 {[%clk 0:00:04.3]} 45. Be3 {[%clk 0:00:35.2]} 45... Kf7 {[%clk
0:00:03.7]} 46. Kf4 {[%clk 0:00:35.3]} 46... Bg2 {[%clk 0:00:03.5]} 47. h4
{[%clk 0:00:35.1]} 47... Bd5 {[%clk 0:00:03.3]} 48. h5 {[%clk 0:00:34]} 48...
gxh5 {[%clk 0:00:03.1]} 49. gxh5 {[%clk 0:00:34.8]} 49... Kg7 {[%clk 0:00:02.3]}
50. Ke5 {[%clk 0:00:33.8]} 50... Rf7 {[%clk 0:00:01.9]} 51. h6+ {[%clk
0:00:31.3]} 51... Kh7 {[%clk 0:00:02.4]} 52. Kd6 {[%clk 0:00:30.2]} 52... Rf5
{[%clk 0:00:01.4]} 53. Rg1 {[%clk 0:00:28.2]} 53... Rf7 {[%clk 0:00:01.7]} 54.
a4 {[%clk 0:00:25.5]} 54... Rb7 {[%clk 0:00:01.9]} 55. Kc5 {[%clk 0:00:24.9]}
55... Rc7 {[%clk 0:00:02]} 56. Kb6 {[%clk 0:00:24.5]} 56... Rf7 {[%clk
0:00:02.4]} 57. Kxa6 {[%clk 0:00:21.8]} 57... Bc4+ {[%clk 0:00:02]} 58. Kb6
{[%clk 0:00:21.7]} 58... Bb3 {[%clk 0:00:02.7]} 59. a5 {[%clk 0:00:20.5]} 59...
Ba4 {[%clk 0:00:02.9]} 60. Rg7+ {[%clk 0:00:19.8]} 60... Rxg7 {[%clk 0:00:02.6]}
61. hxg7 {[%clk 0:00:20.7]} 61... Kxg7 {[%clk 0:00:03.1]} 62. a6 {[%clk
0:00:20.9]} 1-0

[Event "Early-Titled-Tuesday-Blitz-April-02-2024"]
[Site "Chess.com"]
[Date "2024.04.02"]
[Round "4"]
[White "lamomiajunior"]
[Black "Caracal3000"]
[Result "0-1"]
[WhiteElo "2691"]
[BlackElo "2544"]
[TimeControl "180+1"]
[EndTime "8:39:54 PDT"]
[Termination "Caracal3000 won by resignation"]

1. d4 {[%clk 0:03:00.9]} 1... d5 {[%clk 0:02:59.9]} 2. c4 {[%clk 0:03:00.8]}
2... e6 {[%clk 0:03:00.6]} 3. Nc3 {[%clk 0:03:01.1]} 3... c6 {[%clk 0:03:01.3]}
4. Nf3 {[%clk 0:02:58.9]} 4... dxc4 {[%clk 0:03:01.9]} 5. e3 {[%clk 0:02:49.2]}
5... b5 {[%clk 0:03:01.2]} 6. a4 {[%clk 0:02:49.2]} 6... Bb4 {[%clk 0:03:01.4]}
7. Bd2 {[%clk 0:02:49.5]} 7... a5 {[%clk 0:03:01.7]} 8. axb5 {[%clk 0:02:49.7]}
8... Bxc3 {[%clk 0:03:02]} 9. Bxc3 {[%clk 0:02:50.4]} 9... cxb5 {[%clk
0:03:02.7]} 10. b3 {[%clk 0:02:47.9]} 10... Bb7 {[%clk 0:03:02.5]} 11. bxc4
{[%clk 0:02:47.6]} 11... b4 {[%clk 0:03:03.3]} 12. Bb2 {[%clk 0:02:47.4]} 12...
Nf6 {[%clk 0:03:03.2]} 13. Bd3 {[%clk 0:02:46.4]} 13... O-O {[%clk 0:03:03]} 14.
O-O {[%clk 0:02:47.1]} 14... Nbd7 {[%clk 0:02:58.6]} 15. Nd2 {[%clk 0:02:47.1]}
15... Nc5 {[%clk 0:02:50.8]} 16. Bc2 {[%clk 0:02:43.7]} 16... Nce4 {[%clk
0:02:50]} 17. f3 {[%clk 0:02:41.5]} 17... Nxd2 {[%clk 0:02:39.8]} 18. Qxd2
{[%clk 0:02:41.7]} 18... Qc7 {[%clk 0:02:39.9]} 19. Bd3 {[%clk 0:02:38.8]} 19...
Rfb8 {[%clk 0:02:27.4]} 20. e4 {[%clk 0:02:34.4]} 20... a4 {[%clk 0:02:25.8]}
21. d5 {[%clk 0:02:33.1]} 21... exd5 {[%clk 0:02:04.1]} 22. Bxf6 {[%clk
0:02:28.2]} 22... Qb6+ {[%clk 0:02:02.8]} 23. Kh1 {[%clk 0:02:27.3]} 23... Qxf6
{[%clk 0:02:03.1]} 24. cxd5 {[%clk 0:02:25.5]} 24... Qd4 {[%clk 0:01:30.1]} 25.
Qe2 {[%clk 0:02:09.1]} 25... a3 {[%clk 0:01:16.9]} 26. Rfb1 {[%clk 0:01:59.5]}
26... b3 {[%clk 0:01:16.6]} 27. Qd1 {[%clk 0:01:41.2]} 27... b2 {[%clk 0:01:01]}
28. Ra2 {[%clk 0:01:41.4]} 28... Qc3 {[%clk 0:00:31.8]} 29. Qe2 {[%clk
0:01:37.9]} 29... Qc1+ {[%clk 0:00:26.7]} 30. Qf1 {[%clk 0:01:34.7]} 30... Qxf1+
{[%clk 0:00:24.8]} 31. Bxf1 {[%clk 0:01:35.6]} 31... Ba6 {[%clk 0:00:20.2]} 32.
Rxa3 {[%clk 0:01:15.5]} 32... Bxf1 {[%clk 0:00:20.1]} 33. Rxa8 {[%clk
0:01:15.5]} 33... Rxa8 {[%clk 0:00:19.7]} 34. Rxb2 {[%clk 0:01:14.1]} 34... g6
{[%clk 0:00:17.8]} 35. Kg1 {[%clk 0:01:13.7]} 35... Bc4 {[%clk 0:00:16.9]} 36.
Kf2 {[%clk 0:01:14.2]} 36... Ra2 {[%clk 0:00:16.9]} 37. Rxa2 {[%clk 0:01:13]}
37... Bxa2 {[%clk 0:00:17.8]} 38. Ke3 {[%clk 0:01:13.2]} 38... Kg7 {[%clk
0:00:18.2]} 39. Kd4 {[%clk 0:01:13.6]} 39... Kf6 {[%clk 0:00:18.9]} 40. f4
{[%clk 0:01:13.3]} 40... Ke7 {[%clk 0:00:18.7]} 41. g4 {[%clk 0:01:12]} 41... f6
{[%clk 0:00:18.6]} 42. h4 {[%clk 0:01:09.6]} 42... Bb3 {[%clk 0:00:17.4]} 43. g5
{[%clk 0:01:09.4]} 43... fxg5 {[%clk 0:00:09.8]} 44. hxg5 {[%clk 0:01:10.3]}
44... Kf7 {[%clk 0:00:10]} 45. Kc5 {[%clk 0:01:09.8]} 45... Bc2 {[%clk
0:00:09.9]} 46. Kd4 {[%clk 0:01:09.1]} 46... Ke7 {[%clk 0:00:10.2]} 47. e5
{[%clk 0:01:05.4]} 47... Kd7 {[%clk 0:00:10.2]} 48. Kc5 {[%clk 0:01:05.6]} 48...
Be4 {[%clk 0:00:10]} 49. Kd4 {[%clk 0:01:05.7]} 49... Bf3 {[%clk 0:00:10.1]} 50.
Kc5 {[%clk 0:01:06.6]} 50... Ke7 {[%clk 0:00:10.1]} 51. Kc6 {[%clk 0:01:06.5]}
51... Be4 {[%clk 0:00:09.7]} 52. Kc5 {[%clk 0:00:59.3]} 52... Bh1 {[%clk
0:00:09.9]} 53. e6 {[%clk 0:00:58.2]} 53... Bf3 {[%clk 0:00:06]} 54. Kc6 {[%clk
0:00:57.9]} 54... Be4 {[%clk 0:00:05.9]} 55. Kc5 {[%clk 0:00:58.1]} 55... Bf3
{[%clk 0:00:06.3]} 56. Kc6 {[%clk 0:00:54.7]} 56... Bg2 {[%clk 0:00:06.9]} 57.
Kc5 {[%clk 0:00:54.5]} 57... Bh3 {[%clk 0:00:07.5]} 58. Kd4 {[%clk 0:00:42.8]}
58... Kd6 {[%clk 0:00:06.1]} 59. e7 {[%clk 0:00:28.6]} 59... Kxe7 {[%clk
0:00:06.1]} 60. Ke5 {[%clk 0:00:29]} 60... Bf5 {[%clk 0:00:04.4]} 61. d6+ {[%clk
0:00:29.2]} 61... Kd7 {[%clk 0:00:05]} 62. Kd5 {[%clk 0:00:28.3]} 62... Be6+
{[%clk 0:00:04.4]} 63. Ke5 {[%clk 0:00:28.6]} 63... Bb3 {[%clk 0:00:04.8]} 64.
Kf6 {[%clk 0:00:28.5]} 64... Kxd6 {[%clk 0:00:03.8]} 65. f5 {[%clk 0:00:29.4]}
65... gxf5 {[%clk 0:00:03.1]} 66. Kxf5 {[%clk 0:00:29.6]} 66... Bc2+ {[%clk
0:00:03.5]} 67. Kf6 {[%clk 0:00:28.8]} 67... Bg6 {[%clk 0:00:04.4]} 68. Kg7
{[%clk 0:00:29.6]} 68... Kd5 {[%clk 0:00:05]} 69. Kh6 {[%clk 0:00:30.5]} 69...
Ke5 {[%clk 0:00:05.7]} 70. Kg7 {[%clk 0:00:31.3]} 70... Kf5 {[%clk 0:00:06.4]}
71. Kh6 {[%clk 0:00:32.2]} 71... Kg4 {[%clk 0:00:07.1]} 0-1

[Event "Early-Titled-Tuesday-Blitz-April-02-2024"]
[Site "Chess.com"]
[Date "2024.04.02"]
[Round "4"]
[White "EvgenyBurmakin"]
[Black "chess_blitz00"]
[Result "1-0"]
[WhiteElo "2367"]
[BlackElo "2531"]
[TimeControl "180+1"]
[EndTime "8:40:01 PDT"]
[Termination "EvgenyBurmakin won on time"]

1. e4 {[%clk 0:02:59.7]} 1... d6 {[%clk 0:02:59.3]} 2. Nc3 {[%clk 0:02:58]} 2...
Nf6 {[%clk 0:02:59.5]} 3. d4 {[%clk 0:02:58.2]} 3... e5 {[%clk 0:02:58.7]} 4.
Be3 {[%clk 0:02:56.2]} 4... Nbd7 {[%clk 0:02:56.5]} 5. f3 {[%clk 0:02:55.3]}
5... Be7 {[%clk 0:02:56.9]} 6. Qd2 {[%clk 0:02:51.5]} 6... O-O {[%clk
0:02:57.8]} 7. O-O-O {[%clk 0:02:48.4]} 7... c6 {[%clk 0:02:57.1]} 8. h4 {[%clk
0:02:45.9]} 8... Qa5 {[%clk 0:02:54.6]} 9. Kb1 {[%clk 0:02:43.6]} 9... b5 {[%clk
0:02:51.8]} 10. Nd5 {[%clk 0:02:39.7]} 10... Qd8 {[%clk 0:02:48.1]} 11. Nxe7+
{[%clk 0:02:39]} 11... Qxe7 {[%clk 0:02:49]} 12. h5 {[%clk 0:02:38.4]} 12... h6
{[%clk 0:02:37.8]} 13. g4 {[%clk 0:02:37.9]} 13... Nh7 {[%clk 0:02:35.4]} 14.
Ne2 {[%clk 0:02:35]} 14... Nb6 {[%clk 0:02:34.1]} 15. Ng3 {[%clk 0:02:34.2]}
15... Nc4 {[%clk 0:02:29.7]} 16. Bxc4 {[%clk 0:02:33.6]} 16... bxc4 {[%clk
0:02:30.6]} 17. Nf5 {[%clk 0:02:33.9]} 17... Bxf5 {[%clk 0:02:30.9]} 18. gxf5
{[%clk 0:02:34.8]} 18... Rab8 {[%clk 0:02:17]} 19. Rhg1 {[%clk 0:02:27.1]} 19...
Kh8 {[%clk 0:02:17.1]} 20. dxe5 {[%clk 0:02:22.9]} 20... dxe5 {[%clk 0:02:14.4]}
21. Qd6 {[%clk 0:02:15.2]} 21... Qb7 {[%clk 0:01:55]} 22. Qxe5 {[%clk
0:02:12.9]} 22... f6 {[%clk 0:01:48.6]} 23. Qc3 {[%clk 0:02:11.9]} 23... Rfe8
{[%clk 0:01:43.8]} 24. Rd2 {[%clk 0:01:59.1]} 24... Qe7 {[%clk 0:01:35.2]} 25.
Rgd1 {[%clk 0:01:54.9]} 25... Qf7 {[%clk 0:01:26.8]} 26. Rd7 {[%clk 0:01:42.3]}
26... Qxh5 {[%clk 0:01:26]} 27. Bxa7 {[%clk 0:01:34]} 27... Ra8 {[%clk
0:01:19.7]} 28. a3 {[%clk 0:01:30.8]} 28... Ng5 {[%clk 0:01:15.4]} 29. Bd4
{[%clk 0:01:12.5]} 29... Rf8 {[%clk 0:01:10.7]} 30. e5 {[%clk 0:00:57.6]} 30...
Qxf3 {[%clk 0:01:01.2]} 31. Qxf3 {[%clk 0:00:55.7]} 31... Nxf3 {[%clk
0:01:02.1]} 32. exf6 {[%clk 0:00:56.3]} 32... gxf6 {[%clk 0:01:02.2]} 33. Bc3
{[%clk 0:00:52.9]} 33... Ne5 {[%clk 0:00:54.3]} 34. Re7 {[%clk 0:00:44.7]} 34...
Rae8 {[%clk 0:00:49.3]} 35. Rc7 {[%clk 0:00:41.9]} 35... Rc8 {[%clk 0:00:44]}
36. Ra7 {[%clk 0:00:30.7]} 36... Ra8 {[%clk 0:00:33.7]} 37. Rxa8 {[%clk
0:00:24.3]} 37... Rxa8 {[%clk 0:00:34.6]} 38. Rd6 {[%clk 0:00:24.5]} 38... Kg7
{[%clk 0:00:17.8]} 39. Bxe5 {[%clk 0:00:23.9]} 39... fxe5 {[%clk 0:00:18.7]} 40.
Rg6+ {[%clk 0:00:24.3]} 40... Kh7 {[%clk 0:00:18.3]} 41. Rxc6 {[%clk 0:00:22.6]}
41... h5 {[%clk 0:00:15.2]} 42. Rxc4 {[%clk 0:00:17]} 42... Kh6 {[%clk
0:00:15.3]} 43. Re4 {[%clk 0:00:16.2]} 43... Re8 {[%clk 0:00:11.3]} 44. a4
{[%clk 0:00:12.3]} 44... Kg5 {[%clk 0:00:11.5]} 45. a5 {[%clk 0:00:07.9]} 45...
Kxf5 {[%clk 0:00:11.6]} 46. Re1 {[%clk 0:00:07.7]} 46... Rb8 {[%clk 0:00:08.6]}
47. c3 {[%clk 0:00:05.3]} 47... e4 {[%clk 0:00:07.3]} 48. b4 {[%clk 0:00:04.5]}
48... Kf4 {[%clk 0:00:06.7]} 49. Kc2 {[%clk 0:00:04.8]} 49... Kf3 {[%clk
0:00:04.9]} 50. Rh1 {[%clk 0:00:03.1]} 1-0

[Event "Early-Titled-Tuesday-Blitz-April-02-2024"]
[Site "Chess.com"]
[Date "2024.04.02"]
[Round "4"]
[White "Schattman"]
[Black "joselito22"]
[Result "1-0"]
[WhiteElo "2509"]
[BlackElo "2202"]
[TimeControl "180+1"]
[EndTime "8:40:15 PDT"]
[Termination "Schattman won by resignation"]

1. b3 {[%clk 0:02:37.7]} 1... Nf6 {[%clk 0:02:57.9]} 2. Bb2 {[%clk 0:02:32.6]}
2... g6 {[%clk 0:02:58.5]} 3. Nf3 {[%clk 0:02:33.1]} 3... Bg7 {[%clk 0:02:57.8]}
4. g3 {[%clk 0:02:33.7]} 4... d6 {[%clk 0:02:57.6]} 5. d4 {[%clk 0:02:33.5]}
5... O-O {[%clk 0:02:56.5]} 6. Bg2 {[%clk 0:02:33.9]} 6... Nbd7 {[%clk
0:02:55.3]} 7. O-O {[%clk 0:02:34]} 7... Re8 {[%clk 0:02:51.9]} 8. c4 {[%clk
0:02:33.4]} 8... e5 {[%clk 0:02:50.7]} 9. dxe5 {[%clk 0:02:33.8]} 9... Ng4
{[%clk 0:02:50.2]} 10. Nc3 {[%clk 0:02:30.3]} 10... Ngxe5 {[%clk 0:02:49.3]} 11.
Nxe5 {[%clk 0:02:29]} 11... dxe5 {[%clk 0:02:44.2]} 12. Qc2 {[%clk 0:02:19.6]}
12... c6 {[%clk 0:02:42.2]} 13. Rad1 {[%clk 0:02:18]} 13... Qc7 {[%clk
0:02:41.9]} 14. Ne4 {[%clk 0:02:17.3]} 14... Nf6 {[%clk 0:02:38.4]} 15. Nd6
{[%clk 0:02:11]} 15... Re7 {[%clk 0:02:37]} 16. h3 {[%clk 0:02:06.9]} 16... Ne8
{[%clk 0:02:33.6]} 17. c5 {[%clk 0:02:05.5]} 17... Be6 {[%clk 0:02:27.3]} 18.
Rd2 {[%clk 0:01:55.1]} 18... Rd7 {[%clk 0:02:25.1]} 19. Rfd1 {[%clk 0:01:55]}
19... Rad8 {[%clk 0:02:24.1]} 20. Nxe8 {[%clk 0:01:43.4]} 20... Rxe8 {[%clk
0:02:20]} 21. Rxd7 {[%clk 0:01:36.5]} 21... Bxd7 {[%clk 0:02:19.7]} 22. Qd2
{[%clk 0:01:35]} 22... Be6 {[%clk 0:02:18.7]} 23. f4 {[%clk 0:01:28.7]} 23...
exf4 {[%clk 0:02:13.1]} 24. Bxg7 {[%clk 0:01:25.6]} 24... Kxg7 {[%clk
0:02:13.4]} 25. Qxf4 {[%clk 0:01:25.5]} 25... Qxf4 {[%clk 0:01:34.7]} 26. gxf4
{[%clk 0:01:26.4]} 26... Re7 {[%clk 0:01:34.7]} 27. Kf2 {[%clk 0:01:18.7]} 27...
Rd7 {[%clk 0:01:34.9]} 28. Rxd7 {[%clk 0:01:12.3]} 28... Bxd7 {[%clk 0:01:34.3]}
29. b4 {[%clk 0:01:12.8]} 29... f6 {[%clk 0:01:29.2]} 30. a3 {[%clk 0:01:07]}
30... Kf7 {[%clk 0:01:28]} 31. Ke3 {[%clk 0:01:07]} 31... Ke6 {[%clk 0:01:25]}
32. h4 {[%clk 0:01:04.2]} 32... f5 {[%clk 0:01:23]} 33. Kd4 {[%clk 0:01:00.8]}
33... Be8 {[%clk 0:01:17.7]} 34. e4 {[%clk 0:00:59.5]} 34... fxe4 {[%clk
0:01:16.2]} 35. Bxe4 {[%clk 0:00:59]} 35... Bd7 {[%clk 0:01:09.5]} 36. a4 {[%clk
0:00:51.8]} 36... a6 {[%clk 0:01:07.7]} 37. Bd3 {[%clk 0:00:38.2]} 37... Be8
{[%clk 0:01:06]} 38. b5 {[%clk 0:00:37.1]} 38... axb5 {[%clk 0:01:05.2]} 39.
axb5 {[%clk 0:00:37.3]} 39... cxb5 {[%clk 0:01:00.2]} 40. Be4 {[%clk 0:00:27.3]}
40... Bc6 {[%clk 0:00:58.9]} 41. Bc2 {[%clk 0:00:22.4]} 41... Kf6 {[%clk
0:00:50.5]} 42. Bd3 {[%clk 0:00:20.5]} 42... Ke6 {[%clk 0:00:42.1]} 43. Bc2
{[%clk 0:00:18.9]} 43... Kf6 {[%clk 0:00:41.5]} 44. Bd3 {[%clk 0:00:19.2]} 44...
h6 {[%clk 0:00:29.8]} 45. Bc2 {[%clk 0:00:18.3]} 45... g5 {[%clk 0:00:20.1]} 46.
fxg5+ {[%clk 0:00:18]} 46... hxg5 {[%clk 0:00:20.3]} 47. hxg5+ {[%clk 0:00:17]}
47... Kxg5 {[%clk 0:00:20.2]} 48. Kc3 {[%clk 0:00:17.1]} 48... Kf4 {[%clk
0:00:20.1]} 49. Kb4 {[%clk 0:00:17.3]} 49... Ke5 {[%clk 0:00:19.3]} 50. Bh7
{[%clk 0:00:16.9]} 50... Kd4 {[%clk 0:00:18.8]} 51. Bg8 {[%clk 0:00:16.6]} 51...
Bd7 {[%clk 0:00:18.2]} 52. Bh7 {[%clk 0:00:14.8]} 52... Bc6 {[%clk 0:00:18]} 53.
Bg6 {[%clk 0:00:14.7]} 53... Bd7 {[%clk 0:00:18.1]} 54. Bh5 {[%clk 0:00:14.2]}
54... Bc6 {[%clk 0:00:18.3]} 55. Bg4 {[%clk 0:00:14.5]} 55... Be8 {[%clk
0:00:17.7]} 56. Bf3 {[%clk 0:00:14.6]} 56... Bc6 {[%clk 0:00:18.3]} 57. Be2
{[%clk 0:00:14.9]} 57... Bd7 {[%clk 0:00:18.1]} 58. Bxb5 {[%clk 0:00:14.8]}
58... Bc8 {[%clk 0:00:17.2]} 59. Be8 {[%clk 0:00:13.8]} 59... Kd5 {[%clk
0:00:15.9]} 60. Kb5 {[%clk 0:00:12.7]} 60... Ke6 {[%clk 0:00:14.5]} 61. Kb6
{[%clk 0:00:12.6]} 61... Ke7 {[%clk 0:00:14.5]} 62. Bh5 {[%clk 0:00:12.1]} 62...
Kd8 {[%clk 0:00:14.1]} 63. Bf3 {[%clk 0:00:11.4]} 63... Kd7 {[%clk 0:00:13.8]}
64. Bxb7 {[%clk 0:00:10.5]} 64... Kd8 {[%clk 0:00:14.4]} 65. Bxc8 {[%clk
0:00:07.1]} 65... Kxc8 {[%clk 0:00:14.5]} 66. Kc6 {[%clk 0:00:07.4]} 66... Kb8
{[%clk 0:00:14.7]} 67. Kd7 {[%clk 0:00:07.5]} 67... Kb7 {[%clk 0:00:14.4]} 68.
c6+ {[%clk 0:00:07.9]} 1-0